[Event "DFMMLV 2019"]
[Site "Braunfels"]
[Date "2019.06.20"]
[Round "1.27"]
[White "Sokolskaja, Victorjja"]
[Black "Alsheimer, Lea"]
[Result "1-0"]
[ECO "C00"]
[WhiteElo "1961"]
[BlackElo "1707"]
[Annotator "NA"]
[PlyCount "111"]
[EventDate "2019.06.20"]
[EventType "team-tourn"]
[EventCountry "GER"]
[SourceTitle "playchess.com"]
[Source "ChessBase"]
[SourceQuality "1"]
[BlackTeam "Bayern 2"]
[TimeControl "40/5400+30:1800+30"]

1. e4 {[%emt 0:00:00]} e6 {[%emt 0:00:00]} 2. d4 {[%emt 0:00:00]} d5 {[%emt 0:00:00]} 3. Bd3 {[%emt 0:00:03]} Nf6 {[%emt 0:00:10]} 4. e5 {[%emt 0:00:30]} Nfd7 {[%emt 0:00:07]} 5. c3 {[%emt 0:01:21]} c5 {[%emt 0:00:50]} 6. Nf3 {[%emt 0:00:59]} b5 {[%emt 0:04:14]} 7. Bxb5 {[%emt 0:14:05]} Qb6 {[%emt 0:05:30]} 8. Be2 {[%emt 0:10:52]} Nc6 {[%emt 0:01:33]} 9. O-O {[%emt 0:01:22]} Bb7 {[%emt 0:02:02]} 10. a3 {[%emt 0:03:41]} cxd4 {[%emt 0:03:09]} 11. cxd4 {[%emt 0:00:19]} Rc8 {[%emt 0:02:05]} 12. Nc3 {[%emt 0:03:30]} Na5 {[%emt 0:02:58]} 13. Na4 {[%emt 0:07:57]} Qb3 {[%emt 0:00:40]} 14. Nd2 {[%emt 0:07:58]} Qxd1 {[%emt 0:01:33]} 15. Rxd1 {[%emt 0:00:23]} Be7 {[%emt 0:03:47]} 16. b4 {[%emt 0:04:33]} Nc6 {[%emt 0:05:44]} 17. Nb3 {[%emt 0:02:05]} O-O {[%emt 0:03:57]} 18. Be3 {[%emt 0:03:10]} a6 {[%emt 0:07:21]} 19. Rab1 {[%emt 0:02:17]} Na7 {[%emt 0:01:04]} 20. Nbc5 {[%emt 0:02:46]} Bc6 {[%emt 0:03:32]} 21. Bxa6 {[%emt 0:04:37]} Bxa4 {[%emt 0:03:06]} 22. Nxa4 {[%emt 0:00:09]} Rb8 {[%emt 0:01:39]} 23. Rdc1 {[%emt 0:00:50]} Nb5 {[%emt 0:01:59]} 24. Bxb5 {[%emt 0:01:35]} Rxb5 {[%emt 0:00:01]} 25. Rc7 {[%emt 0:01:19]} Rd8 {[%emt 0:00:16]} 26. Nc5 {[%emt 0:04:39]} Bxc5 {[%emt 0:00:18]} 27. dxc5 {[%emt 0:00:43]} Nxe5 {[%emt 0:00:08]} 28. a4 {[%emt 0:01:49]} Rbb8 {[%emt 0:00:04]} 29. Bd4 {[%emt 0:02:09]} Nc4 {[%emt 0:01:02]} 30. f4 {[%emt 0:01:02]} Ra8 {[%emt 0:00:24]} 31. Ra1 {[%emt 0:00:52]} Nd2 {[%emt 0:03:14]} 32. Bc3 {[%emt 0:04:07]} Ne4 {[%emt 0:00:26]} 33. Bd4 {[%emt 0:00:59]} Nd2 {[%emt 0:00:18]} 34. Rd1 {[%emt 0:02:38]} Nb3 {[%emt 0:00:49]} 35. a5 {[%emt 0:02:56]} Rdb8 {[%emt 0:01:54]} 36. Bc3 {[%emt 0:00:20]} d4 {[%emt 0:00:16]} 37. Be1 {[%emt 0:00:47]} f6 {[%emt 0:01:21]} 38. Re7 {[%emt 0:00:30]} Ra6 {[%emt 0:01:11]} 39. Rc7 {[%emt 0:03:36]} Kf8 {[%emt 0:01:16]} 40. Rb1 {[%emt 0:00:50]} Nxa5 {[%emt 0:02:58]} 41. Ra1 {[%emt 0:31:25]} Rc6 {[%emt 0:30:44]} 42. Rd7 {[%emt 0:04:07]} Rb7 {[%emt 0:05:57]} 43. Rxb7 {[%emt 0:00:00]} Nxb7 {[%emt 0:00:00]} 44. Ra8+ {[%emt 0:00:00]} Ke7 {[%emt 0:00:00]} 45. Ra7 {[%emt 0:00:00]} Rc7 {[%emt 0:00:00]} 46. c6 {[%emt 0:00:00]} Rxc6 {[%emt 0:00:00]} 47. Rxb7+ {[%emt 0:00:00]} Kd8 {[%emt 0:00:00]} 48. Rxg7 {[%emt 0:00:00]} d3 {[%emt 0:00:00]} 49. Rg3 {[%emt 0:00:00]} Rd6 {[%emt 0:00:00]} 50. Bd2 {[%emt 0:00:00]} e5 {[%emt 0:00:00]} 51. Re3 {[%emt 0:00:00]} Rd5 {[%emt 0:00:00]} 52. fxe5 {[%emt 0:00:00]} fxe5 {[%emt 0:00:00]} 53. Kf2 {[%emt 0:00:00]} Kd7 {[%emt 0:00:00]} 54. Rh3 {[%emt 0:00:00]} Kc6 {[%emt 0:00:00]} 55. Rxh7 {[%emt 0:00:00]} Rd6 {[%emt 0:00:00]} 56. Rh6 {[%emt 0:00:00]} 1-0

[Event "DFMMLV 2019"]
[Site "Braunfels"]
[Date "2019.06.20"]
[Round "1.28"]
[White "Pavlov, Liliane"]
[Black "Sokalskaja, Elena"]
[Result "0-1"]
[ECO "D70"]
[WhiteElo "1619"]
[BlackElo "2014"]
[Annotator "NA"]
[PlyCount "102"]
[EventDate "2019.06.20"]
[EventType "team-tourn"]
[EventCountry "GER"]
[SourceTitle "playchess.com"]
[Source "ChessBase"]
[SourceQuality "1"]
[WhiteTeam "Bayern 2"]
[BlackTeam "NRW"]
[TimeControl "40/5400+30:1800+30"]

1. d4 {[%emt 0:00:00]} Nf6 {[%emt 0:00:00]} 2. c4 {[%emt 0:00:00]} g6 {[%emt 0:00:00]} 3. Nf3 {[%emt 0:00:00]} Bg7 {[%emt 0:00:00]} 4. g3 {[%emt 0:00:27]} O-O {[%emt 0:00:00]} 5. Bg2 {[%emt 0:00:12]} d5 {[%emt 0:00:00]} 6. Nc3 {[%emt 0:01:42]} c6 {[%emt 0:05:33]} 7. b3 {[%emt 0:02:49]} Ne4 {[%emt 0:00:40]} 8. Bb2 {[%emt 0:00:57]} Qa5 {[%emt 0:00:31]} 9. Rc1 {[%emt 0:07:00]} dxc4 {[%emt 0:11:32]} 10. bxc4 {[%emt 0:07:22]} c5 {[%emt 0:10:37]} 11. O-O Nxc3 {[%emt 0:03:53]} 12. Rxc3 {[%emt 0:24:55]} Rd8 {[%emt 0:03:19]} 13. e3 {[%emt 0:08:35]} Nc6 {[%emt 0:01:46]} 14. Ra3 {[%emt 0:03:22]} Qc7 {[%emt 0:00:11]} 15. Qa1 {[%emt 0:16:50]} cxd4 {[%emt 0:03:52]} 16. exd4 {[%emt 0:01:45]} Na5 {[%emt 0:06:53]} 17. c5 {[%emt 0:03:24]} Nc4 {[%emt 0:00:33]} 18. Rb3 {[%emt 0:00:55]} Nxb2 {[%emt 0:04:01]} 19. Qxb2 {[%emt 0:00:33]} Rb8 {[%emt 0:00:40]} 20. Re1 {[%emt 0:01:22]} Be6 {[%emt 0:00:42]} 21. Rb4 {[%emt 0:01:28]} Bd5 {[%emt 0:00:40]} 22. Ne5 {[%emt 0:02:50]} e6 {[%emt 0:02:09]} 23. f4 {[%emt 0:03:45]} h5 {[%emt 0:02:04]} 24. Bxd5 {[%emt 0:01:00]} Rxd5 {[%emt 0:00:31]} 25. Rb1 {[%emt 0:00:55]} Bxe5 {[%emt 0:01:55]} 26. fxe5 {[%emt 0:00:20]} Rd7 {[%emt 0:01:35]} 27. Qa3 {[%emt 0:01:33]} Qd8 {[%emt 0:03:19]} 28. Qb2 {[%emt 0:01:53]} Rc7 {[%emt 0:04:28]} 29. Qa3 {[%emt 0:01:11]} a6 {[%emt 0:01:22]} 30. Qa4 {[%emt 0:02:31]} Qd5 {[%emt 0:00:23]} 31. Rb6 {[%emt 0:00:52]} Qe4 {[%emt 0:00:14]} 32. R1b4 {[%emt 0:01:27]} h4 {[%emt 0:02:45]} 33. Rxa6 {[%emt 0:02:17]} h3 {[%emt 0:00:32]} 34. Kf2 {[%emt 0:01:28]} Qg2+ {[%emt 0:01:05]} 35. Ke3 {[%emt 0:00:11]} Qxh2 {[%emt 0:01:53]} 36. Ra8 {[%emt 0:01:33]} Qxg3+ {[%emt 0:00:21]} 37. Kd2 {[%emt 0:00:35]} Qf2+ {[%emt 0:08:00]} 38. Kd3 {[%emt 0:00:22]} Rcc8 {[%emt 0:02:32]} 39. Rxb8 {[%emt 0:00:26]} Rxb8 {[%emt 0:00:03]} 40. c6 {[%emt 0:00:33]} h2 {[%emt 0:01:42]} 41. c7 {[%emt 0:00:23]} Rf8 {[%emt 0:00:16]} 42. Qd1 {[%emt 0:00:52]} Qxa2 {[%emt 0:00:47]} 43. Rc4 {[%emt 0:00:38]} Rc8 {[%emt 0:01:20]} 44. Qh1 {[%emt 0:01:29]} Qa6 {[%emt 0:01:26]} 45. Kc3 {[%emt 0:03:17]} Qa5+ {[%emt 0:00:31]} 46. Kd3 {[%emt 0:00:14]} Rxc7 {[%emt 0:01:24]} 47. Rxc7 {[%emt 0:01:11]} Qxc7 {[%emt 0:00:02]} 48. Qxh2 {[%emt 0:00:06]} b5 {[%emt 0:01:02]} 49. Qd2 {[%emt 0:02:33]} Qc4+ {[%emt 0:00:23]} 50. Ke4 {[%emt 0:00:32]} b4 {[%emt 0:00:28]} 51. Qg5 {[%emt 0:02:07]} Qe2+ {[%emt 0:00:15]} 0-1

[Event "DFMMLV 2019"]
[Site "Braunfels"]
[Date "2019.06.20"]
[Round "1.29"]
[White "Schmidt, Andrea"]
[Black "Schaefer, Ann-Kathrin"]
[Result "1/2-1/2"]
[ECO "B32"]
[WhiteElo "2006"]
[BlackElo "1714"]
[Annotator "NA"]
[PlyCount "75"]
[EventDate "2019.06.20"]
[EventType "team-tourn"]
[EventCountry "GER"]
[SourceTitle "playchess.com"]
[Source "ChessBase"]
[SourceQuality "1"]
[WhiteTeam "NRW"]
[TimeControl "40/5400+30:1800+30"]

1. e4 {[%emt 0:00:00]} c5 {[%emt 0:00:00]} 2. Nf3 {[%emt 0:00:46]} Nc6 {[%emt 0:00:00]} 3. d4 {[%emt 0:00:50]} cxd4 {[%emt 0:00:00]} 4. c3 {[%emt 0:00:05]} d3 {[%emt 0:03:05]} 5. c4 {[%emt 0:01:39]} e5 {[%emt 0:02:17]} 6. Bxd3 {[%emt 0:00:26]} Be7 {[%emt 0:02:37]} 7. Nc3 {[%emt 0:00:13]} d6 {[%emt 0:00:57]} 8. Be3 {[%emt 0:03:30]} Nf6 {[%emt 0:03:17]} 9. h3 {[%emt 0:00:25]} O-O {[%emt 0:02:23]} 10. Rc1 {[%emt 0:00:28]} h6 {[%emt 0:09:39]} 11. a3 {[%emt 0:03:55]} a5 {[%emt 0:02:07]} 12. O-O {[%emt 0:02:01]} Nh7 {[%emt 0:03:07]} 13. Nd5 {[%emt 0:00:20]} Be6 {[%emt 0:11:57]} 14. Qe2 {[%emt 0:10:45]} Ng5 {[%emt 0:07:18]} 15. Nxe7+ {[%emt 0:03:37]} Qxe7 {[%emt 0:01:03]} 16. Rfd1 {[%emt 0:02:05]} Nxf3+ {[%emt 0:03:10]} 17. Qxf3 {[%emt 0:00:07]} Rfd8 {[%emt 0:03:08]} 18. Qg3 {[%emt 0:09:48]} Kh8 {[%emt 0:03:16]} 19. f4 {[%emt 0:04:51]} f6 {[%emt 0:03:44]} 20. Rc3 {[%emt 0:10:35]} Rac8 {[%emt 0:09:31]} 21. Be2 {[%emt 0:03:59]} a4 {[%emt 0:04:07]} 22. f5 {[%emt 0:07:40]} Bf7 {[%emt 0:00:45]} 23. Qh4 {[%emt 0:00:31]} Kh7 {[%emt 0:02:35]} 24. Bh5 {[%emt 0:03:57]} Rd7 {[%emt 0:02:33]} 25. Bxf7 {[%emt 0:02:20]} Qxf7 {[%emt 0:00:11]} 26. Qg4 {[%emt 0:01:40]} Na5 {[%emt 0:02:27]} 27. c5 {[%emt 0:02:28]} dxc5 {[%emt 0:01:45]} 28. Bxc5 {[%emt 0:03:27]} Rxd1+ {[%emt 0:03:39]} 29. Qxd1 {[%emt 0:00:06]} Nc4 {[%emt 0:03:09]} 30. Bb4 {[%emt 0:06:29]} Nxb2 {[%emt 0:01:41]} 31. Qc2 {[%emt 0:06:18]} Rxc3 {[%emt 0:02:00]} 32. Qxc3 {[%emt 0:00:17]} Nc4 {[%emt 0:01:00]} 33. Qd3 {[%emt 0:00:24]} b5 {[%emt 0:01:46]} 34. Kh2 {[%emt 0:06:32]} Qb7 {[%emt 0:01:15]} 35. Qg3 {[%emt 0:00:49]} Qxe4 {[%emt 0:02:05]} 36. Qg6+ {[%emt 0:00:09]} Kg8 {[%emt 0:00:30]} 37. Qe8+ {[%emt 0:00:07]} Kh7 {[%emt 0:00:05]} 38. Qg6+ 1/2-1/2

[Event "DFMMLV 2019"]
[Site "Braunfels"]
[Date "2019.06.20"]
[Round "1.30"]
[White "Albayrak, Nese Pinar"]
[Black "Hiebsch, Catalina"]
[Result "0-1"]
[ECO "C64"]
[WhiteElo "1530"]
[BlackElo "1760"]
[Annotator "NA"]
[PlyCount "96"]
[EventDate "2019.06.20"]
[EventType "team-tourn"]
[EventCountry "GER"]
[SourceTitle "playchess.com"]
[Source "ChessBase"]
[SourceQuality "1"]
[TimeControl "40/5400+30:1800+30"]

1. e4 {[%emt 0:00:00]} e5 {[%emt 0:00:00]} 2. Nf3 {[%emt 0:00:00]} Nc6 {[%emt 0:00:00]} 3. Bb5 {[%emt 0:00:00]} Bc5 {[%emt 0:01:09]} 4. c3 {[%emt 0:00:28]} d6 {[%emt 0:00:58]} 5. O-O {[%emt 0:00:56]} Bd7 {[%emt 0:02:43]} 6. d4 {[%emt 0:03:19]} exd4 {[%emt 0:01:17]} 7. cxd4 {[%emt 0:00:08]} Bb6 {[%emt 0:01:07]} 8. Re1 {[%emt 0:04:55]} Nge7 {[%emt 0:06:50]} 9. Bxc6 {[%emt 0:14:51]} Bxc6 {[%emt 0:05:59]} 10. d5 {[%emt 0:04:26]} Bd7 {[%emt 0:02:18]} 11. e5 {[%emt 0:03:00]} O-O {[%emt 0:07:27]} 12. Bg5 {[%emt 0:03:19]} dxe5 {[%emt 0:06:15]} 13. Bxe7 {[%emt 0:23:33]} Qxe7 {[%emt 0:00:13]} 14. Nxe5 {[%emt 0:00:47]} Rfe8 {[%emt 0:03:41]} 15. Nc3 {[%emt 0:04:55]} Bf5 {[%emt 0:08:57]} 16. Nb5 {[%emt 0:07:44]} Rad8 {[%emt 0:12:02]} 17. Qf3 {[%emt 0:04:37]} Bg6 {[%emt 0:03:02]} 18. Qc3 {[%emt 0:06:00]} Qf6 {[%emt 0:08:41]} 19. Ng4 {[%emt 0:08:23]} Qf4 {[%emt 0:09:08]} 20. Ne3 {[%emt 0:01:17]} a6 {[%emt 0:01:46]} 21. Na3 {[%emt 0:01:07]} h6 {[%emt 0:04:18]} 22. Nac4 {[%emt 0:00:52]} Bd4 {[%emt 0:02:10]} 23. Qc1 {[%emt 0:01:56]} Be4 {[%emt 0:02:44]} 24. Qd2 {[%emt 0:00:56]} Bxd5 {[%emt 0:00:51]} 25. Nxd5 {[%emt 0:01:12]} Rxe1+ {[%emt 0:00:58]} 26. Qxe1 {[%emt 0:01:58]} Rxd5 {[%emt 0:00:31]} 27. g3 {[%emt 0:01:46]} Bxf2+ {[%emt 0:01:13]} 28. Qxf2 {[%emt 0:00:01]} Qxc4 {[%emt 0:00:14]} 29. b3 {[%emt 0:00:20]} Qd4 {[%emt 0:00:24]} 30. Rc1 {[%emt 0:01:30]} c6 {[%emt 0:00:49]} 31. Re1 {[%emt 0:00:27]} Kf8 {[%emt 0:01:23]} 32. Re2 {[%emt 0:00:42]} Qxf2+ {[%emt 0:00:55]} 33. Kxf2 {[%emt 0:00:20]} f5 {[%emt 0:01:00]} 34. h3 {[%emt 0:00:41]} Kf7 {[%emt 0:00:19]} 35. Kf3 {[%emt 0:00:23]} Rd3+ {[%emt 0:00:49]} 36. Kf4 {[%emt 0:00:25]} Kf6 {[%emt 0:00:15]} 37. Re3 {[%emt 0:00:39]} g5+ {[%emt 0:00:54]} 38. Kf3 {[%emt 0:00:03]} Rxe3+ {[%emt 0:00:12]} 39. Kxe3 {[%emt 0:00:05]} Ke5 {[%emt 0:00:11]} 40. a4 {[%emt 0:00:56]} Kd5 {[%emt 0:01:30]} 41. Kd3 {[%emt 0:30:51]} a5 {[%emt 0:31:02]} 42. Ke3 {[%emt 0:00:27]} b5 {[%emt 0:00:50]} 43. axb5 {[%emt 0:00:36]} cxb5 {[%emt 0:00:06]} 44. Kd3 {[%emt 0:00:07]} a4 {[%emt 0:00:47]} 45. bxa4 {[%emt 0:00:46]} bxa4 {[%emt 0:00:09]} 46. Kc3 {[%emt 0:00:18]} f4 {[%emt 0:00:17]} 47. gxf4 {[%emt 0:00:26]} gxf4 {[%emt 0:00:10]} 48. Kd3 {[%emt 0:00:03]} a3 {[%emt 0:00:10]} 0-1

[Event "DFMMLV 2019"]
[Site "Braunfels"]
[Date "2019.06.20"]
[Round "1.31"]
[White "Hoerhold, Karola"]
[Black "Weber, Leonora"]
[Result "0-1"]
[ECO "B24"]
[WhiteElo "1727"]
[BlackElo "1712"]
[Annotator "NA"]
[PlyCount "34"]
[EventDate "2019.06.20"]
[EventType "team-tourn"]
[EventCountry "GER"]
[SourceTitle "playchess.com"]
[Source "ChessBase"]
[SourceQuality "1"]
[WhiteTeam "NRW"]
[BlackTeam "Bayern 2"]
[TimeControl "40/5400+30:1800+30"]

1. e4 {[%emt 0:00:00]} c5 {[%emt 0:00:00]} 2. Nc3 {[%emt 0:00:00]} Nc6 {[%emt 0:00:00]} 3. Bb5 {[%emt 0:00:00]} g6 {[%emt 0:03:28]} 4. Bxc6 {[%emt 0:00:02]} bxc6 {[%emt 0:00:07]} 5. f4 {[%emt 0:00:08]} Bg7 {[%emt 0:00:27]} 6. Nf3 {[%emt 0:00:17]} c4 {[%emt 0:11:11]} 7. O-O {[%emt 0:04:22]} Nf6 {[%emt 0:12:37]} 8. Kh1 {[%emt 0:21:24]} Ng4 {[%emt 0:13:55]} 9. Ng5 {[%emt 0:11:17]} h5 {[%emt 0:05:00]} 10. e5 {[%emt 0:04:58]} Qb6 {[%emt 0:17:29]} 11. Qe2 {[%emt 0:11:47]} e6 {[%emt 0:07:23]} 12. Nce4 {[%emt 0:03:10]} Ba6 {[%emt 0:06:58]} 13. Nd6+ {[%emt 0:02:02]} Ke7 {[%emt 0:01:12]} 14. Nxc4 {[%emt 0:05:27]} Bxc4 {[%emt 0:03:34]} 15. Qxc4 {[%emt 0:02:54]} Nf2+ {[%emt 0:00:14]} 16. Kg1 {[%emt 0:01:36]} Nh3+ {[%emt 0:00:12]} 17. Kh1 {[%emt 0:00:20]} Qg1+ {[%emt 0:00:07]} 0-1

[Event "DFMMLV 2019"]
[Site "Braunfels"]
[Date "2019.06.20"]
[Round "1.32"]
[White "Albayrak, Berrak"]
[Black "Haehnel, Andrea"]
[Result "0-1"]
[ECO "C01"]
[WhiteElo "1491"]
[BlackElo "1746"]
[Annotator "NA"]
[PlyCount "88"]
[EventDate "2019.06.20"]
[EventType "team-tourn"]
[EventCountry "GER"]
[SourceTitle "playchess.com"]
[Source "ChessBase"]
[SourceQuality "1"]
[WhiteTeam "Bayern 2"]
[BlackTeam "NRW"]
[TimeControl "40/5400+30:1800+30"]

1. e4 {[%emt 0:00:00]} e6 {[%emt 0:00:00]} 2. d4 {[%emt 0:00:00]} d5 {[%emt 0:00:00]} 3. exd5 {[%emt 0:00:00]} exd5 {[%emt 0:00:00]} 4. Bd3 {[%emt 0:00:00]} Nf6 {[%emt 0:01:37]} 5. Nf3 {[%emt 0:01:37]} Bg4 {[%emt 0:00:36]} 6. h3 {[%emt 0:01:23]} Bh5 {[%emt 0:00:27]} 7. Bf4 {[%emt 0:04:27]} Qe7+ {[%emt 0:06:19]} 8. Qe2 {[%emt 0:06:00]} Bxf3 {[%emt 0:02:09]} 9. Qxe7+ {[%emt 0:01:40]} Bxe7 {[%emt 0:00:08]} 10. gxf3 {[%emt 0:00:04]} c6 {[%emt 0:02:03]} 11. Rg1 {[%emt 0:04:16]} g6 {[%emt 0:03:15]} 12. Nd2 {[%emt 0:02:59]} Nbd7 {[%emt 0:01:57]} 13. O-O-O {[%emt 0:02:14]} Nh5 {[%emt 0:04:37]} 14. Bh2 {[%emt 0:01:40]} O-O-O {[%emt 0:00:32]} 15. Rde1 {[%emt 0:02:49]} Rde8 {[%emt 0:05:38]} 16. c3 {[%emt 0:03:58]} f5 {[%emt 0:04:02]} 17. Re2 {[%emt 0:09:54]} f4 {[%emt 0:03:16]} 18. Rge1 {[%emt 0:05:55]} Kd8 {[%emt 0:00:09]} 19. c4 {[%emt 0:05:17]} a6 {[%emt 0:00:41]} 20. c5 {[%emt 0:03:29]} Bf6 {[%emt 0:00:57]} 21. Nb3 {[%emt 0:01:05]} Rxe2 {[%emt 0:01:33]} 22. Rxe2 {[%emt 0:00:21]} Re8 {[%emt 0:01:06]} 23. Kd2 {[%emt 0:02:44]} Rxe2+ {[%emt 0:00:41]} 24. Bxe2 {[%emt 0:02:31]} Nf8 {[%emt 0:01:18]} 25. Kc3 {[%emt 0:03:08]} Ne6 {[%emt 0:00:08]} 26. Bf1 {[%emt 0:03:14]} Nhg7 {[%emt 0:00:57]} 27. Bd3 {[%emt 0:06:42]} Kc7 {[%emt 0:00:34]} 28. a4 {[%emt 0:05:22]} a5 {[%emt 0:00:14]} 29. Nxa5 {[%emt 0:07:02]} Bxd4+ {[%emt 0:00:08]} 30. Kc2 {[%emt 0:01:11]} Bxc5 {[%emt 0:00:10]} 31. Nb3 {[%emt 0:01:21]} Bxf2 {[%emt 0:01:26]} 32. Kd2 {[%emt 0:03:19]} Nh5 {[%emt 0:00:22]} 33. Ke2 {[%emt 0:04:28]} Be3 {[%emt 0:01:22]} 34. Kf1 {[%emt 0:00:36]} c5 {[%emt 0:01:14]} 35. Bb5 {[%emt 0:03:16]} c4 {[%emt 0:01:14]} 36. Na1 {[%emt 0:00:44]} Nd4 {[%emt 0:00:07]} 37. Bg1 {[%emt 0:01:15]} Bxg1 {[%emt 0:04:56]} 38. Kxg1 {[%emt 0:00:04]} Nxf3+ {[%emt 0:00:04]} 39. Kf2 {[%emt 0:01:12]} Nd4 {[%emt 0:00:07]} 40. Be8 {[%emt 0:01:11]} Nf6 {[%emt 0:00:10]} 41. Bb5 {[%emt 0:02:41]} Ne4+ {[%emt 0:00:56]} 42. Ke1 {[%emt 0:01:40]} f3 {[%emt 0:00:48]} 43. Be8 {[%emt 0:02:06]} f2+ {[%emt 0:00:39]} 44. Kf1 {[%emt 0:00:36]} Nf3 {[%emt 0:00:47]} 0-1

[Event "DFMMLV 2019"]
[Site "Braunfels"]
[Date "2019.06.20"]
[Round "1.33"]
[White "Froehlich, Franziska"]
[Black "Steinbacher, Claudia"]
[Result "1-0"]
[ECO "C02"]
[WhiteElo "1820"]
[BlackElo "2080"]
[Annotator "NA"]
[PlyCount "101"]
[EventDate "2019.06.20"]
[EventType "team-tourn"]
[EventCountry "GER"]
[SourceTitle "playchess.com"]
[Source "ChessBase"]
[SourceQuality "1"]
[WhiteTeam "Wuerttemberg 2"]
[TimeControl "40/5400+30:1800+30"]

1. e4 {[%emt 0:00:00]} c5 {[%emt 0:00:00]} 2. c3 {[%emt 0:00:00]} e6 {[%emt 0:02:23]} 3. d4 {[%emt 0:00:05]} d5 {[%emt 0:00:06]} 4. e5 {[%emt 0:00:17]} Nc6 {[%emt 0:00:50]} 5. Nf3 {[%emt 0:00:07]} f6 {[%emt 0:02:21]} 6. exf6 {[%emt 0:02:05]} Nxf6 {[%emt 0:01:47]} 7. Be2 {[%emt 0:02:27]} Bd6 {[%emt 0:01:17]} 8. O-O {[%emt 0:01:28]} O-O {[%emt 0:02:29]} 9. Nbd2 {[%emt 0:07:31]} b6 {[%emt 0:07:28]} 10. Re1 {[%emt 0:03:13]} Qc7 {[%emt 0:06:38]} 11. Nf1 {[%emt 0:03:16]} Bd7 {[%emt 0:04:39]} 12. Bd3 {[%emt 0:05:46]} e5 {[%emt 0:03:14]} 13. dxe5 {[%emt 0:05:11]} Nxe5 {[%emt 0:00:02]} 14. Nxe5 {[%emt 0:00:18]} Bxe5 {[%emt 0:00:02]} 15. h3 {[%emt 0:02:34]} Bc6 {[%emt 0:09:23]} 16. Bg5 {[%emt 0:09:06]} Bf4 {[%emt 0:09:53]} 17. Bxf4 {[%emt 0:01:54]} Qxf4 {[%emt 0:00:02]} 18. Qd2 {[%emt 0:02:03]} Ne4 {[%emt 0:11:52]} 19. Bxe4 {[%emt 0:03:24]} dxe4 {[%emt 0:00:05]} 20. Qxf4 {[%emt 0:01:15]} Rxf4 {[%emt 0:00:01]} 21. Rad1 {[%emt 0:00:52]} Raf8 {[%emt 0:02:29]} 22. Rd2 {[%emt 0:00:58]} Bb5 {[%emt 0:01:24]} 23. Ne3 {[%emt 0:03:13]} Bd3 {[%emt 0:02:32]} 24. c4 {[%emt 0:01:39]} R4f7 {[%emt 0:04:03]} 25. b3 {[%emt 0:04:17]} b5 {[%emt 0:05:06]} 26. cxb5 {[%emt 0:00:37]} Bxb5 {[%emt 0:00:03]} 27. Rc1 {[%emt 0:02:26]} Rc8 {[%emt 0:02:39]} 28. Rd5 {[%emt 0:01:59]} Bd3 {[%emt 0:02:47]} 29. Rcxc5 {[%emt 0:01:23]} Rcf8 {[%emt 0:00:03]} 30. Rf5 {[%emt 0:00:30]} Rxf5 {[%emt 0:02:49]} 31. Nxf5 {[%emt 0:01:49]} a6 {[%emt 0:03:48]} 32. g4 {[%emt 0:10:06]} g6 {[%emt 0:04:29]} 33. Ne3 {[%emt 0:02:57]} Rb8 {[%emt 0:00:56]} 34. Nd5 {[%emt 0:06:03]} Rd8 {[%emt 0:02:03]} 35. Kg2 {[%emt 0:01:57]} Be2 {[%emt 0:00:29]} 36. Nf6+ {[%emt 0:02:10]} Kg7 {[%emt 0:03:33]} 37. Nxe4 {[%emt 0:00:11]} Rd4 {[%emt 0:01:33]} 38. Rc7+ {[%emt 0:04:08]} Kf8 {[%emt 0:00:38]} 39. Ng5 {[%emt 0:01:52]} Rd2 {[%emt 0:00:50]} 40. Nxh7+ {[%emt 0:01:27]} Kg8 {[%emt 0:00:40]} 41. Nf6+ {[%emt 0:32:08]} Kf8 {[%emt 0:30:02]} 42. h4 {[%emt 0:00:00]} Rd6 {[%emt 0:00:00]} 43. Ne4 {[%emt 0:00:00]} Rd4 {[%emt 0:00:00]} 44. f3 {[%emt 0:00:00]} Rd3 {[%emt 0:00:00]} 45. Ng5 {[%emt 0:00:00]} Rd2 {[%emt 0:00:00]} 46. Kg3 {[%emt 0:00:00]} Rxa2 {[%emt 0:00:00]} 47. h5 {[%emt 0:00:00]} gxh5 {[%emt 0:00:00]} 48. gxh5 {[%emt 0:00:00]} Bf1 {[%emt 0:00:00]} 49. h6 {[%emt 0:00:00]} Rg2+ {[%emt 0:00:00]} 50. Kf4 {[%emt 0:00:00]} Rh2 {[%emt 0:00:00]} 51. Rc8+ {[%emt 0:00:00]} 1-0